Cogmind - Beta 16 @@@ ROGUE MODE // 2025.12.03 @ 20:29:54 Player: GGOBC-006 Result: Destroyed by H-77 Assassin with Coil Gun Performance ------------- Evolutions (7) 3500 Regions Visited (18) 3600 Robots Destroyed (83) 415 Value Destroyed (1950) 1950 Prototype IDs (50) 1000 Alien Tech Used (2) 400 Bonus (1023) 1023 TOTAL SCORE: 11888 Bonus ------- High Alert Combat Kills 13 Follower Combat Kills 210 Entered DSFs 500 Aligned with FarCom 300 Cogmind --------- Core Integrity 0/1300 Matter 121/300 Energy 100/100 System Corruption 3% Temperature Cool (0) Movement Core (200) Ox3 Location -3/Armory Parts ------- > --- POWER (3) -------- (None) > --- PROPULSION (6) --- (None) > --- UTILITY (10) ----- (None) > --- WEAPON (2) ------- Hardcell Cannon > --- INVENTORY (5) ---- Improved Ion Engine Quantum Rifle Improved EM Pulse Cannon Peak State ------------ > --- POWER ------------ Micro Antimatter Reactor Micro Antimatter Reactor Micro Antimatter Reactor > --- PROPULSION ------- Improved VTOL Module Impulse Thruster Q-thruster Q-thruster Electron Diverter Cooled Impulse Thruster > --- UTILITY ---------- Advanced Sensor Array Advanced Signal Interpreter IFF Parser 0b10 Decoder Chip [Scout] Experimental Target Analyzer ECM Suite ECM Suite Improved Reaction Control System Cloaking Device Experimental Hacking Suite > --- WEAPON ----------- Compact Mass Driver Axe > --- INVENTORY -------- Improved Ion Engine Quantum Rifle Improved EM Pulse Cannon Hardcell Cannon Plasma Cutter [Rating: 132] Favorites ----------- Power Light Nuclear Core Engine Light Ion Engine Power Core Light Nuclear Core Reactor Micro Antimatter Reactor Propulsion Improved VTOL Module Leg Advanced Myomer Leg Wheel Wheel Flight Unit Improved VTOL Module Utility ECM Suite Device ECM Suite Storage Matter Compressor Processor Improved Signal Interpreter Hackware Experimental Hacking Suite Protection Experimental Core Shielding Weapon Autogun Energy Gun Heavy EM Shotgun Energy Cannon Improved EM Pulse Cannon Ballistic Gun Autogun Ballistic Cannon Compact Mass Driver Launcher Missile Launcher Special Weapon Mining Laser Slashing Weapon Axe Build | -11 -10 -10 -10 -9 -8 -7 -6 -6 -5 -5 -5 -5 -4 -4 -4 -4 -3 -3 ------- Run | Yrd Mat Min Exi Min Mat Fac Fac DSF Fac Upp Upp Zhi Pro Fac Upp Upp Res Arm Slots Evolved 14 | . . . . . 4 2 2 . 2 . . . . 2 . . 2 . Power 2 | . . . . . . 1 1 . . . . . . . . . . . Propulsion 4 | . . . . . 2 1 1 . . . . . . . . . . . Utility 8 | . . . . . 2 . . . 2 . . . . 2 . . 2 . Weapon . | . . . . . . . . . . . . . . . . . . . Parts Attached 116 | 8 10 3 . . 16 16 4 1 5 2 4 3 7 2 10 3 20 2 Power 19 | 1 2 1 . . 3 2 2 . . 1 1 1 . . 1 . 4 . Engine 8 | 1 2 1 . . 2 1 1 . . . . . . . . . . . Core 7 | . . . . . 1 1 1 . . 1 1 . . . 1 . 1 . Reactor 4 | . . . . . . . . . . . . 1 . . . . 3 . Propulsion 28 | 3 3 . . . 6 4 1 1 . . . 1 2 . 2 . 4 1 Treads . | . . . . . . . . . . . . . . . . . . . Leg 1 | . . . . . . . . . . . . 1 . . . . . . Wheel 3 | 3 . . . . . . . . . . . . . . . . . . Hover . | . . . . . . . . . . . . . . . . . . . Flight 24 | . 3 . . . 6 4 1 1 . . . . 2 . 2 . 4 1 Utility 45 | 2 3 2 . . 4 8 . . 4 . 1 1 2 1 5 3 9 . Device 26 | 2 2 2 . . 2 5 . . 3 . 1 . 1 . 2 2 4 . Storage 1 | . . . . . . . . . . . . . . . . 1 . . Processor 14 | . 1 . . . 1 3 . . 1 . . . . 1 3 . 4 . Hackware 1 | . . . . . . . . . . . . . . . . . 1 . Protection 3 | . . . . . 1 . . . . . . 1 1 . . . . . Artifact . | . . . . . . . . . . . . . . . . . . . Weapon 24 | 2 2 . . . 3 2 1 . 1 1 2 . 3 1 2 . 3 1 Energy Gun 7 | 2 . . . . 2 1 1 . . . . . . . 1 . . . Energy Cannon 2 | . . . . . . . . . . . 1 . 1 . . . . . Ballistic Gun 5 | . 1 . . . 1 1 . . 1 . 1 . . . . . . . Ballistic Cannon 4 | . . . . . . . . . . . . . 1 . . . 2 1 Launcher 2 | . . . . . . . . . . 1 . . . . . . 1 . Special Weapon 3 | . 1 . . . . . . . . . . . 1 1 . . . . Impact Weapon . | . . . . . . . . . . . . . . . . . . . Slashing Weapon 1 | . . . . . . . . . . . . . . . 1 . . . Piercing Weapon . | . . . . . . . . . . . . . . . . . . . Special Melee Weapon . | . . . . . . . . . . . . . . . . . . . Unidentified Prototypes 18 | . . 1 . . 3 2 1 . . . . 5 . . . . 6 . Parts Lost 34 | . 7 . . . 3 . . . . . . . 5 1 4 . . 14 Power 4 | . 2 . . . . . . . . . . . . . 1 . . 1 Propulsion 16 | . 2 . . . . . . . . . . . 4 1 2 . . 7 Utility 8 | . 2 . . . 2 . . . . . . . . . . . . 4 Weapon 6 | . 1 . . . 1 . . . . . . . 1 . 1 . . 2 Highest Loss Streak 8 | . 6 . . . 3 . . . . . . . 5 1 3 . . 8 To Critical Strikes . | . . . . . . . . . . . . . . . . . . . Average Backups 4 | 2 2 4 5 5 4 4 4 4 4 4 4 4 4 4 4 4 4 4 Power . | . 1 . 1 1 . . . . . . . . . . . 1 . 1 Propulsion . | . . 2 2 2 . 1 . . . . . . . . . . . . Utility . | . . . 1 1 . . . . . . . . 1 . . . . . Weapon 1 | 1 1 1 . . 1 1 2 2 2 2 2 2 1 1 2 2 2 2 Tool/Special . | . . . . . . . . . . . . . . . . . . . Unused Backups 5 | . 1 . 1 . . 1 1 . . . . . . . . . . 1 Power 2 | . . . . . . 1 . . . . . . . . . . . 1 Propulsion . | . . . . . . . . . . . . . . . . . . . Utility 1 | . . . . . . . 1 . . . . . . . . . . . Weapon 2 | . 1 . 1 . . . . . . . . . . . . . . . Tool/Special . | . . . . . . . . . . . . . . . . . . . Average Slot Usage (%) 76 | . 53 93 71 71 84 88 90 93 88 93 93 93 48 56 61 44 85 70 Engine 2 | . 10 11 . . 8 1 4 6 5 5 4 . . . . . . . Core 6 | . . . . . . 13 13 13 11 11 11 17 5 5 3 . 3 2 Flight 27 | . 4 28 28 28 35 36 40 40 35 35 35 35 14 18 18 10 24 20 Device 17 | . 15 14 14 14 10 22 20 20 23 23 22 18 13 16 10 11 24 18 Processor 6 | . . 11 . . 7 . . . . 5 5 5 5 5 14 15 16 11 Protection 3 | . . . . . 8 . . . . . . 3 5 10 10 . . . Ballistic Gun 7 | . 10 14 14 14 8 13 13 13 11 9 11 11 . . . . . . Special Weapon 1 | . 1 14 14 14 2 . . . . . . . . . . . . . Peak Build Rating 132 | 8 8 20 14 14 30 46 51 49 61 61 65 74 74 51 66 53 132 127 Average Rating 45 | 5 4 8 12 14 24 38 46 48 53 59 60 71 39 48 57 38 103 91 On Entrance 41 | . 8 7 12 14 14 18 43 47 49 61 60 65 74 51 39 53 41 127 Avg Prop Armor Cover (%) 10 | . . . . . . 7 . . . . . . 12 . . . . . Naked Turns 16 | . . . . . . . . . . . . . . . . . . 16 Heaviest Build 39 | 9 9 7 7 7 16 24 33 31 34 35 34 32 32 23 22 7 39 39 Greatest Support 43 | 20 20 8 8 8 17 25 33 34 34 34 34 34 34 22 26 12 43 43 Greatest Overweight (x) 4 | 2 1 . . . . 4 . . . 1 . 1 2 1 . . . 3 Average Overweight (x) . | . . . . . . . . . . . . . . . . . . . Largest Inventory Capacity 5 | 5 5 5 5 5 5 5 5 5 5 5 5 5 5 5 5 5 5 5 Average Capacity 5 | 5 5 5 5 5 5 5 5 5 5 5 5 5 5 5 5 5 5 5 Most Carried 5 | 5 5 5 5 5 5 5 5 5 5 5 5 5 5 5 5 5 5 5 Average Carried 4 | 2 2 4 4 5 4 4 4 4 4 4 4 4 4 4 4 4 4 4 Final Capacity 5 | 5 5 5 5 5 5 5 5 5 5 5 5 5 5 5 5 5 5 5 Final Carried 5 | 3 4 5 5 5 5 5 4 5 5 4 5 5 5 5 5 4 5 3 Scrap Suit Usage (%) 53 | . . 23 100 100 100 100 100 100 100 100 100 100 3 . . . . . Parts Cannibalized 4 | . . . . . . 3 . . . 1 . . . . . . . . Class Distribution -------------------- 52% | Sprinter 10% | Mutant 7% | Scavenger-Sprinter 7% | Derelict-Sprinter 7% | Ninja 5% | Scrapper 5% | Infiltrator-Ninja Dominant Class ---------------- Mutant | -10/Materials Mutant | -10/Mines Scrapper | -10/Exiles Scrapper | -9/Mines Scavenger-Sprinter | -8/Materials Sprinter | -7/Factory Scientist-Sprinter | -6/Factory Scientist-Sprinter | -6/DSF Sprinter | -5/Factory Sprinter | -5/Upper Caves Sprinter | -5/Upper Caves Sprinter | -5/Zhirov Sprinter | -4/Proximity Caves Sprinter | -4/Factory Derelict-Sprinter | -4/Upper Caves Mutant | -4/Upper Caves Ninja | -3/Research Infiltrator-Ninja | -3/Armory Resources | -11 -10 -10 -10 -9 -8 -7 -6 -6 -5 -5 -5 -5 -4 -4 -4 -4 -3 -3 ----------- Run | Yrd Mat Min Exi Min Mat Fac Fac DSF Fac Upp Upp Zhi Pro Fac Upp Upp Res Arm Matter Collected 2793 | 280 244 . . 134 256 692 54 . 118 156 127 . 341 . 237 30 108 16 Remotely 10 | . . . . . . . . . . . . . . . 10 . . . Salvage Created 3355 | 269 600 . . . 290 845 94 . 155 131 118 . 207 30 536 . 80 . Parts 181 | 25 38 . . . 28 39 5 . 3 14 4 . 14 1 8 . 2 . Haulers Intercepted 7 | . . . . . 2 2 1 . 1 . . . . . . . 1 . Recyclers Shooed 7 | . 3 1 . . . 2 . . 1 . . . . . . . . . Parts Field Recycled . | . . . . . . . . . . . . . . . . . . . Retrieved Matter . | . . . . . . . . . . . . . . . . . . . Parts Self-Destructed 30 | . . . . . . . . . . 7 4 . 15 . 4 . . . Prevented 9 | . . . . . . . . . . 2 . . 2 . 5 . . . Parts Restored . | . . . . . . . . . . . . . . . . . . . Kills | -11 -10 -10 -10 -9 -8 -7 -6 -6 -5 -5 -5 -5 -4 -4 -4 -4 -3 -3 ------- Run | Yrd Mat Min Exi Min Mat Fac Fac DSF Fac Upp Upp Zhi Pro Fac Upp Upp Res Arm Combat Hostiles Destroyed 46 | . 10 . . . 8 6 . . . 10 1 . 5 1 5 . . . Guns 28 | . 10 . . . 8 6 . . . 1 1 . 2 . . . . . Cannons 2 | . . . . . . . . . . . . . . 1 1 . . . AOE 14 | . . . . . . . . . . 9 . . 2 . 3 . . . Classes Destroyed 13 | 3 3 . . . 2 3 . . . . . . 1 . 1 . . . Worker 5 | 2 2 . . . . 1 . . . . . . . . . . . . Builder 3 | . 3 . . . . . . . . . . . . . . . . . Tunneler 10 | 9 . . . . . 1 . . . . . . . . . . . . Hauler 7 | . . . . . 2 2 1 . 1 . . . . . . . 1 . Recycler 7 | 1 2 . . . . 4 . . . . . . . . . . . . Drone 2 | . . . . . . . . . . . . . 2 . . . . . Watcher 5 | . . . . . . 4 . . 1 . . . . . . . . . Swarmer 24 | . 2 . . . 7 2 . . . 9 . . . 1 3 . . . Grunt 11 | . 8 . . . . . . . . 1 . . 2 . . . . . Brawler 1 | . . . . . . 1 . . . . . . . . . . . . Sentry 1 | . . . . . . . . . . . . . . . 1 . . . Hunter 4 | . . . . . 1 2 . . . . . . . . 1 . . . Programmer 3 | . . . . . . 1 . . . . 1 . 1 . . . . . Best Kill Streak 8 | 8 6 . . . 4 3 1 . 1 6 1 . 2 1 2 . 1 . Combat Bots Only 6 | . 4 . . . 4 2 . . . 6 1 . 2 1 2 . . . Max Kills in Single Turn 3 | 1 1 . . . 2 1 1 . 1 3 1 . 1 1 1 . 1 . Gunslinging . | . . . . . . . . . . . . . . . . . . . Exploded 3 | . . . . . . . . . . 3 . . 1 . 1 . . . Melee . | . . . . . . . . . . . . . . . . . . . Uniques/NPCs Destroyed . | . . . . . . . . . . . . . . . . . . . Combat | -11 -10 -10 -10 -9 -8 -7 -6 -6 -5 -5 -5 -5 -4 -4 -4 -4 -3 -3 -------- Run | Yrd Mat Min Exi Min Mat Fac Fac DSF Fac Upp Upp Zhi Pro Fac Upp Upp Res Arm Hostile Shots Fired 449 | . 64 . . 1 45 23 . 4 . 10 10 . 31 12 34 5 19 191 Missed 182 | . 18 . . 1 24 9 . 2 . 5 3 . 13 4 22 1 13 67 Hits 267 | . 46 . . . 21 14 . 2 . 5 7 . 18 8 12 4 6 124 Melee 6 | . . . . . 1 1 . . . . . . . . . 4 . . Projectile 261 | . 46 . . . 20 13 . 2 . 5 7 . 18 8 12 . 6 124 AOE 3 | . . . . . 2 . . 1 . . . . . . . . . . Critical Strikes 11 | . . . . . 1 1 . . . . 2 . 1 . . . . 6 Damage Taken 4912 | . 527 . . . 622 220 . 81 . 108 148 . 465 132 215 5 187 2202 Core 1811 | . 219 . . . 108 46 . . . 29 . . 68 11 26 . 24 1280 Absorbed by Shields 190 | . . . . . . . . . . . . . . . . . . 190 Redirected to Shielding 150 | . . . . . 97 . . . . . . . 29 7 17 . . . Regen/Repaired (Parts) 35 | . . . . . . 31 . . . 4 . . . . . . . . Core Remaining (%) 80 | 100 . . . 12 80 93 . 100 . . . . 82 . . 96 . . Volleys Fired 352 | 44 104 5 . . 44 56 2 . 15 7 6 . 16 7 31 . 9 6 Largest 2 | 1 1 1 . . 1 2 2 . 2 2 2 . 1 1 1 . 1 1 Hottest 100 | 50 100 20 . . 100 51 51 . 61 61 61 . 69 69 69 . 54 58 Shots Fired 403 | 44 104 5 . . 45 96 4 . 16 8 12 . 16 7 31 . 9 6 Gun 320 | 44 102 5 . . 37 96 4 . 16 2 12 . 2 . . . . . Cannon 35 | . . . . . . . . . . . . . 8 5 7 . 9 6 Launcher 15 | . . . . . . . . . . 6 . . 5 . 4 . . . Special 33 | . 2 . . . 8 . . . . . . . 1 2 20 . . . Kinetic 259 | . 81 5 . . 22 96 4 . 16 2 12 . 6 . . . 9 6 Thermal 65 | 33 2 . . . 8 . . . . . . . . 2 20 . . . Explosive 15 | . . . . . . . . . . 6 . . 5 . 4 . . . Electromagnetic 63 | 11 21 . . . 15 . . . . . . . 4 5 7 . . . Robot Hit Streak 15 | 8 13 2 . . 14 15 5 . 3 5 12 . 6 4 10 . 1 1 Robot Miss Streak 4 | 3 4 2 . . 4 1 1 . 1 2 2 . 2 1 1 . 2 . Penetration Max . | . . . . . . . . . . . . . . . . . . . Secondary Targets . | . . . . . . . . . . . . . . . . . . . Shots Hit Robots 264 | 30 62 2 . . 29 62 3 . 7 5 8 . 12 5 28 1 8 2 Core Hits 134 | 13 32 1 . . 13 28 2 . 3 12 3 . 8 2 13 1 1 2 Critical Kills 3 | . 1 . . . . 1 . . . . . . 1 . . . . . Critical Parts Destroyed . | . . . . . . . . . . . . . . . . . . . Critical Strikes 14 | 8 2 . . . . 1 . . . . . . 1 . 1 . . 1 Burn 8 | 8 . . . . . . . . . . . . . . . . . . Destroy 3 | . 1 . . . . 1 . . . . . . 1 . . . . . Corrupt 2 | . 1 . . . . . . . . . . . . . 1 . . . Sever 1 | . . . . . . . . . . . . . . . . . . 1 Melee Attacks 23 | . . . . . . . . . . . . . . . 8 3 9 3 Impact . | . . . . . . . . . . . . . . . . . . . Slashing 23 | . . . . . . . . . . . . . . . 8 3 9 3 Piercing . | . . . . . . . . . . . . . . . . . . . Sneak Attacks 1 | . . . . . . . . . . . . . . . . . 1 . Combat Hostiles . | . . . . . . . . . . . . . . . . . . . Follow-up Attacks . | . . . . . . . . . . . . . . . . . . . Damage Inflicted 6335 | 451 914 24 . . 439 1252 60 . 188 669 203 . 494 106 1035 33 378 89 Guns 3224 | 393 783 24 . . 439 1066 60 . 188 26 203 . 42 . . . . . Cannons 521 | . . . . . . . . . . . . . 163 94 151 . 76 37 Explosions 1550 | 58 131 . . . . 186 . . . 643 . . 289 . 243 . . . Melee 859 | . . . . . . . . . . . . . . . 488 33 302 36 Ramming 16 | . . . . . . . . . . . . . . . . . . 16 Kinetic 2594 | . 636 24 . . 195 1066 60 . 188 26 203 . 83 . . . 76 37 Thermal 865 | 383 131 . . . . 186 . . . . . . . 12 153 . . . Explosive 1175 | . . . . . . . . . . 643 . . 289 . 243 . . . Electromagnetic 826 | 68 147 . . . 244 . . . . . . . 122 94 151 . . . Impact . | . . . . . . . . . . . . . . . . . . . Slashing 859 | . . . . . . . . . . . . . . . 488 33 302 36 Piercing . | . . . . . . . . . . . . . . . . . . . Highest Corruption 9 | . . . . . 9 1 . . . . 2 2 2 . . . . 3 Average Corruption 2 | . . . . . 4 1 . . . . 1 2 2 . . . . 1 Corruption Purged 1 | . . . . . . 1 . . . . . . . . . . . . Corruption Blocked . | . . . . . . . . . . . . . . . . . . . Effects 35 | . . . . . 23 . . . . . . 2 10 . . . . . Message Errors 7 | . . . . . 6 . . . . . . . 1 . . . . . Matter Fused 6 | . . . . . 3 . . . . . . . 3 . . . . . Heat Flow Errors 11 | . . . . . 6 . . . . . . 1 4 . . . . . Energy Discharges 6 | . . . . . 4 . . . . . . 1 1 . . . . . Parts Rejected 1 | . . . . . 1 . . . . . . . . . . . . . Data Loss (minor) 1 | . . . . . 1 . . . . . . . . . . . . . Data Loss (major) 2 | . . . . . 1 . . . . . . . 1 . . . . . Misfires 1 | . . . . . 1 . . . . . . . . . . . . . Overload Shots . | . . . . . . . . . . . . . . . . . . . Overflow Damage 192 | . . . . . . . . . . 24 . . 6 . 140 . . 22 Projectiles 29 | . . . . . . . . . . . . . 6 . 1 . . 22 Explosions 24 | . . . . . . . . . . 24 . . . . . . . . Melee 139 | . . . . . . . . . . . . . . . 139 . . . Knockbacks 3 | . . . . . . . . . . . . . 1 . . . 2 . Impact . | . . . . . . . . . . . . . . . . . . . Kinetic 3 | . . . . . . . . . . . . . 1 . . . 2 . Secondary . | . . . . . . . . . . . . . . . . . . . Self-Inflicted Damage 84 | . 22 . . . . . . . . 30 . . 24 . . . . 8 Shots 3 | . 1 . . . . . . . . 1 . . 1 . . . . . Rammed 4 | . . . . . . . . . . . . . . . . . . 4 Targets Rammed 4 | . . . . . . . . . . . . . . . . . . 4 Kicked . | . . . . . . . . . . . . . . . . . . . Crushed . | . . . . . . . . . . . . . . . . . . . Highest Temperature 366 | 110 156 . . . 268 221 222 5 28 92 80 174 253 . 3 . 366 220 Average Temperature 74 | 43 58 . . . 55 73 93 5 8 34 26 62 95 . 2 . 111 105 Received Heat Transfer 444 | . 246 . . . 27 9 . . . . 9 . 60 9 18 . . 66 Siege Activations . | . . . . . . . . . . . . . . . . . . . Martial Activations . | . . . . . . . . . . . . . . . . . . . Shielding Activations . | . . . . . . . . . . . . . . . . . . . Robots Disrupted . | . . . . . . . . . . . . . . . . . . . Combat Hostiles . | . . . . . . . . . . . . . . . . . . . Robots Corrupted 2 | . . . . . . . . . . . . . 1 . 1 . . . Combat Hostiles 2 | . . . . . . . . . . . . . 1 . 1 . . . Parts Fried 4 | . 1 . . . . . . . . . . . 1 2 . . . . Impact Corruptions . | . . . . . . . . . . . . . . . . . . . Robots Melted . | . . . . . . . . . . . . . . . . . . . Combat Hostiles . | . . . . . . . . . . . . . . . . . . . Parts Melted 4 | 4 . . . . . . . . . . . . . . . . . . Heat Transferred 2459 | 1604 200 . . . . 100 . . . . . . . 37 518 . . . Parts Sabotaged . | . . . . . . . . . . . . . . . . . . . Parts Stolen 3 | . . . . . . . . . . . . . . . . 3 . . Parts Stripped . | . . . . . . . . . . . . . . . . . . . Power Chain Reactions 3 | 1 2 . . . . . . . . . . . . . . . . . Alert | -11 -10 -10 -10 -9 -8 -7 -6 -6 -5 -5 -5 -5 -4 -4 -4 -4 -3 -3 ------- Run | Yrd Mat Min Exi Min Mat Fac Fac DSF Fac Upp Upp Zhi Pro Fac Upp Upp Res Arm Maximum Alert Level 2 | . . . . . 2 1 . . . . . . . . . . . . Low Security (%) 92 | 100 100 100 . 100 65 98 100 100 100 . . . . 100 . . 100 100 Level 1 6 | . . . . . 30 1 . . . . . . . . . . . . Level 2 . | . . . . . 4 . . . . . . . . . . . . . Level 3 . | . . . . . . . . . . . . . . . . . . . Level 4 . | . . . . . . . . . . . . . . . . . . . Level 5 . | . . . . . . . . . . . . . . . . . . . High Security . | . . . . . . . . . . . . . . . . . . . Max Security . | . . . . . . . . . . . . . . . . . . . Peak Influence 412 | 10 130 40 . . 412 210 81 23 30 . . . . 60 . . 20 22 Initial 147 | . . 40 . . . 147 81 23 11 . . . . 7 . . . 2 Average 62 | 1 86 14 . . 126 85 60 23 6 . . . . 20 . . 2 5 Influence Increases 2582 | 60 335 . . . 558 551 12 . 72 296 56 . 184 95 110 . 106 147 Destroy 0b10 Robot/C 1000 | . 200 . . . 160 140 . . . 200 40 . 140 20 100 . . . Destroy 0b10 Robot/NC 210 | 60 35 . . . 10 60 5 . 10 . 5 . 10 . 10 . 5 . Destroy Leader 164 | . 30 . . . 34 42 2 . 4 20 10 . 20 . . . 2 . Allied During Kill 96 | . . . . . . 3 . . 2 76 1 . 14 . . . . . Successful Hack 194 | . 18 . . . 6 108 5 . 24 . . . . . . . 12 21 Select Force Hacks 60 | . . . . . . 60 . . . . . . . . . . . . Disable Machine 180 | . 15 . . . . 45 . . 30 . . . . . . . 30 60 Destroy Structure 33 | . 7 . . . 3 3 . . 2 . . . . . . . 12 6 Partial Spotted 270 | . . . . . 45 90 . . . . . . . 45 . . 45 45 Lose Combat Pursuer 375 | . 30 . . . 300 . . . . . . . . 30 . . . 15 Influence Decreases 2577 | 60 230 105 . . 234 708 146 10 74 119 138 116 171 53 165 . 102 146 Entered New Map 542 | . . 65 . . . 177 86 10 12 9 38 116 . 6 21 . . 2 Time Decay 1737 | 60 160 40 . . 204 501 60 . 62 110 80 . 141 37 124 . 101 57 Lost Part 176 | . 70 . . . 30 . . . . . . . 10 10 20 . . 36 Lost Ally 99 | . . . . . . 30 . . . . 20 . 20 . . . . 29 Purge Threat 23 | . . . . . . . . . . . . . . . . . 1 22 Squads Dispatched 32 | . 2 . . 1 6 10 1 1 2 . . . . 1 . . 7 1 Investigation 14 | . 1 . . 1 1 6 . . 2 . . . . 1 . . 2 . Extermination 7 | . . . . . . 4 . . . . . . . . . . 3 . Reinforcement 11 | . 1 . . . 5 . 1 1 . . . . . . . . 2 1 Assault . | . . . . . . . . . . . . . . . . . . . Garrison . | . . . . . . . . . . . . . . . . . . . Intercept . | . . . . . . . . . . . . . . . . . . . Searches Triggered . | . . . . . . . . . . . . . . . . . . . Construction Impeded . | . . . . . . . . . . . . . . . . . . . Haulers Reinforced 1 | . . . . . . . 1 . . . . . . . . . . . Active Scanning Responses . | . . . . . . . . . . . . . . . . . . . Cargo Convoy Interrupts . | . . . . . . . . . . . . . . . . . . . Stealth | -11 -10 -10 -10 -9 -8 -7 -6 -6 -5 -5 -5 -5 -4 -4 -4 -4 -3 -3 --------- Run | Yrd Mat Min Exi Min Mat Fac Fac DSF Fac Upp Upp Zhi Pro Fac Upp Upp Res Arm Distress Signals 14 | . 5 . . . 5 2 . . . . . . . . . . 1 1 Communications Jammed . | . . . . . . . . . . . . . . . . . . . Distress Signals . | . . . . . . . . . . . . . . . . . . . Times Spotted 194 | . 15 . . 6 43 28 . 4 1 5 8 . 6 10 24 3 14 27 Peak Tracking Total 20 | . 7 . . 20 11 10 . 4 1 3 7 . 2 7 7 3 6 15 Tactical Retreats 38 | . 1 . . 1 7 6 . 2 . . . . . 2 7 . 7 5 ECM-based Alert Blocks 69 | . . . . . . 15 . 5 . . . . . 1 20 . 12 16 Traps | -11 -10 -10 -10 -9 -8 -7 -6 -6 -5 -5 -5 -5 -4 -4 -4 -4 -3 -3 ------- Run | Yrd Mat Min Exi Min Mat Fac Fac DSF Fac Upp Upp Zhi Pro Fac Upp Upp Res Arm Traps Triggered 10 | . 1 . . . . 3 . . . . . . . 1 . . 2 3 Indirectly . | . . . . . . . . . . . . . . . . . . . Trap Hack Attempts . | . . . . . . . . . . . . . . . . . . . Triggered . | . . . . . . . . . . . . . . . . . . . Disarmed . | . . . . . . . . . . . . . . . . . . . Reprogrammed . | . . . . . . . . . . . . . . . . . . . Reused . | . . . . . . . . . . . . . . . . . . . Traps Extracted . | . . . . . . . . . . . . . . . . . . . Installed . | . . . . . . . . . . . . . . . . . . . Triggered . | . . . . . . . . . . . . . . . . . . . Machines | -11 -10 -10 -10 -9 -8 -7 -6 -6 -5 -5 -5 -5 -4 -4 -4 -4 -3 -3 ---------- Run | Yrd Mat Min Exi Min Mat Fac Fac DSF Fac Upp Upp Zhi Pro Fac Upp Upp Res Arm Machines Disabled 13 | . 1 . . . . 3 . . 2 . . . 1 . . . 2 4 Max in Single Turn 2 | . 1 . . . . 2 . . 1 . . . . . . . 1 1 Machines Repaired . | . . . . . . . . . . . . . . . . . . . Machines Dismantled . | . . . . . . . . . . . . . . . . . . . Machines Sabotaged . | . . . . . . . . . . . . . . . . . . . Overloaded Fab Kills . | . . . . . . . . . . . . . . . . . . . Hacking | -11 -10 -10 -10 -9 -8 -7 -6 -6 -5 -5 -5 -5 -4 -4 -4 -4 -3 -3 --------- Run | Yrd Mat Min Exi Min Mat Fac Fac DSF Fac Upp Upp Zhi Pro Fac Upp Upp Res Arm Machines Accessed 73 | . 4 1 3 1 4 22 3 . 5 . 1 9 1 3 2 . 9 5 Terminals 29 | . 3 . . . 2 12 1 . 3 . . . 1 1 . . 4 2 Fabricators 9 | . . . . . . 3 . . . . . . . 1 . . 2 3 Repair Stations 5 | . . . . . . 2 1 . . . . . . . . . 2 . Recycling Units 6 | . 1 . . . 2 2 . . . . . . . 1 . . . . Scanalyzers 5 | . . . . . . 2 1 . 1 . . . . . . . 1 . Garrison Access 2 | . . . . . . 1 . . 1 . . . . . . . . . Total Hacks 209 | . 11 1 25 1 10 58 6 . 10 . 1 48 2 5 2 . 20 9 Successful 129 | . 5 1 25 1 4 24 5 . 2 . 1 48 2 . 2 . 6 3 Failed 79 | . 6 . . . 6 33 1 . 8 . . . . 5 . . 14 6 Catastrophic 13 | . 1 . . . 1 4 . . 2 . . . . 1 . . 3 1 Database Lockouts 1 | . . . . . . 1 . . . . . . . . . . . . Manual 75 | . 9 . 1 . 7 35 . . 7 . . . 3 . . . 9 4 Terminals 67 | . 9 . . . 7 26 1 . 6 . . . 2 2 . . 11 3 Fabricators 21 | . . . . . . 11 . . . . . . . 1 . . 3 6 Repair Stations 10 | . . . . . . 4 1 . . . . . . . . . 5 . Recycling Units 12 | . 2 . . . 3 5 . . . . . . . 2 . . . . Scanalyzers 17 | . . . . . . 10 4 . 2 . . . . . . . 1 . Garrison Access 4 | . . . . . . 2 . . 2 . . . . . . . . . Terminal Hacks 87 | . . 1 25 1 . 3 1 . . . 1 48 2 . 2 . 2 1 Record 63 | . . . 24 . . . . . . . . 36 2 . 1 . . . Part Schematic 4 | . . . . . . . . . . . . 4 . . . . . . Robot Analysis 5 | . . . . . . 1 . . . . . 4 . . . . . . Prototype ID Bank 4 | . . . . . . . . . . . . 4 . . . . . . Open Door 4 | . . 1 . 1 . . . . . . 1 . . . 1 . . . Open DSF 4 | . . . . . . 2 1 . . . . . . . . . 1 . Unreport Threat 2 | . . . . . . . . . . . . . . . . . 1 1 Proto ID Catalog 1 | . . . 1 . . . . . . . . . . . . . . . Fabricator Hacks 5 | . . . . . . 2 . . . . . . . . . . 1 2 Network Status 1 | . . . . . . 1 . . . . . . . . . . . . Load Schematic 2 | . . . . . . . . . . . . . . . . . 1 1 Build 2 | . . . . . . 1 . . . . . . . . . . . 1 Repair Station Hacks 6 | . . . . . . 3 . . . . . . . . . . 3 . Scan Component 4 | . . . . . . 2 . . . . . . . . . . 2 . Repair 2 | . . . . . . 1 . . . . . . . . . . 1 . Recycling Unit Hacks 6 | . 1 . . . 3 2 . . . . . . . . . . . . Report Inventory 3 | . . . . . 1 2 . . . . . . . . . . . . Retrieve Components 3 | . 1 . . . 2 . . . . . . . . . . . . . Scanalyzer 8 | . . . . . . 4 4 . . . . . . . . . . . Retrieve Study 8 | . . . . . . 4 4 . . . . . . . . . . . Garrison Access Hacks . | . . . . . . . . . . . . . . . . . . . Unauthorized Hacks 17 | . 4 . . . 1 10 . . 2 . . . . . . . . . Terminals 14 | . 4 . . . 1 8 . . 1 . . . . . . . . . Track 1 | . . . . . . 1 . . . . . . . . . . . . Assimilate 2 | . . . . . 1 1 . . . . . . . . . . . . Botnet 8 | . 3 . . . . 5 . . . . . . . . . . . . Operators 3 | . 1 . . . . 1 . . 1 . . . . . . . . . Fabricators . | . . . . . . . . . . . . . . . . . . . Repair Stations . | . . . . . . . . . . . . . . . . . . . Recycling Units 2 | . . . . . . 2 . . . . . . . . . . . . Tunnel 2 | . . . . . . 2 . . . . . . . . . . . . Scanalyzers . | . . . . . . . . . . . . . . . . . . . Garrison Access 1 | . . . . . . . . . 1 . . . . . . . . . Reprogram 1 | . . . . . . . . . 1 . . . . . . . . . Data Cores Recovered . | . . . . . . . . . . . . . . . . . . . Used . | . . . . . . . . . . . . . . . . . . . Hacking Detections 47 | . 4 . . . 3 18 1 . 5 . . . . 3 . . 8 5 Full Trace Events 9 | . . . . . 2 4 . . 1 . . . . 1 . . 1 . Feedback Events . | . . . . . . . . . . . . . . . . . . . Feedback Blocked . | . . . . . . . . . . . . . . . . . . . Robot Schematics Acquired . | . . . . . . . . . . . . . . . . . . . Robots Built 4 | . . . . . . 3 . . . . . . . . . . . 1 Authchips . | . . . . . . . . . . . . . . . . . . . Time 129 | . . . . . . 67 . . . . . . . . . . . 62 Total Robot Build Rating 19 | . . . . . . 12 . . . . . . . . . . . 7 Part Schematics Acquired 4 | . . . . . . . . . . . . 4 . . . . . . Parts Built . | . . . . . . . . . . . . . . . . . . . Authchips . | . . . . . . . . . . . . . . . . . . . Time . | . . . . . . . . . . . . . . . . . . . Total Part Build Rating . | . . . . . . . . . . . . . . . . . . . Part Studies Acquired 8 | . . . . . . 4 4 . . . . . . . . . . . Parts Repaired 2 | . . . . . . 1 . . . . . . . . . . 1 . Time 127 | . . . . . . 32 . . . . . . . . . . 95 . Parts Recycled . | . . . . . . . . . . . . . . . . . . . Recycled Matter . | . . . . . . . . . . . . . . . . . . . Retrieved Matter . | . . . . . . . . . . . . . . . . . . . Retrieved Components 13 | . 8 . . . 5 . . . . . . . . . . . . . Parts Scanalyzed . | . . . . . . . . . . . . . . . . . . . Part Schematics Acquired . | . . . . . . . . . . . . . . . . . . . Parts Damaged . | . . . . . . . . . . . . . . . . . . . Bothacking | -11 -10 -10 -10 -9 -8 -7 -6 -6 -5 -5 -5 -5 -4 -4 -4 -4 -3 -3 ------------ Run | Yrd Mat Min Exi Min Mat Fac Fac DSF Fac Upp Upp Zhi Pro Fac Upp Upp Res Arm Used RIF Installer . | . . . . . . . . . . . . . . . . . . . Robots Hacked . | . . . . . . . . . . . . . . . . . . . Non-combat . | . . . . . . . . . . . . . . . . . . . Combat . | . . . . . . . . . . . . . . . . . . . Robot Hacks Applied . | . . . . . . . . . . . . . . . . . . . Relay Couplers Released . | . . . . . . . . . . . . . . . . . . . Fabnet Peak Effective % . | . . . . . . . . . . . . . . . . . . . Robots Rewired 2 | . . . . . . . . . . . . . . . . . . 2 Allies Hacked 3 | . . . . . . 1 . . . . . . . . . . . 2 Hacks Repelled . | . . . . . . . . . . . . . . . . . . . Allies | -11 -10 -10 -10 -9 -8 -7 -6 -6 -5 -5 -5 -5 -4 -4 -4 -4 -3 -3 -------- Run | Yrd Mat Min Exi Min Mat Fac Fac DSF Fac Upp Upp Zhi Pro Fac Upp Upp Res Arm Total Allies 12 | . . . . . . 4 . . 4 . . . 1 . . . . 3 Largest Group 4 | . . . . . . 3 . . 4 4 4 . 1 . . . . 2 Highest-Rated Group 116 | . . . . . . 60 . . 116 116 116 . 116 . . . . 90 Highest-Rated Ally 116 | . . . . . . 26 . . 29 29 29 . 116 . . . . 90 Total Orders . | . . . . . . . . . . . . . . . . . . . Ally Attacks 26 | . . . . . . 5 . . . 3 3 . 14 . . . . 1 Total Damage 1356 | . . . . . . 199 . . . 37 39 . 961 . . . . 120 Kills 6 | . . . . . . 1 . . . . 1 . 4 . . . . . Allies Corrupted 3 | . . . . . . 1 . . . . . . . . . . . 2 Allies Melted . | . . . . . . . . . . . . . . . . . . . Field Lobotomies 1 | . . . . . . . . . . . . . 1 . . . . . Intel | -11 -10 -10 -10 -9 -8 -7 -6 -6 -5 -5 -5 -5 -4 -4 -4 -4 -3 -3 ------- Run | Yrd Mat Min Exi Min Mat Fac Fac DSF Fac Upp Upp Zhi Pro Fac Upp Upp Res Arm Active Infowar (turns) 6297 | 181 250 96 . . . 1736 124 40 256 236 173 170 615 158 1000 237 850 175 Optics 60 | . . . . . . 60 . . . . . . . . . . . . Sensors 5738 | . 46 96 . . . 1634 124 40 256 236 173 170 615 158 1000 237 838 115 IFF 1106 | . . . . . . . . . . . . . . . . 93 838 175 Terrain 240 | 181 59 . . . . . . . . . . . . . . . . . Structural 160 | . 160 . . . . . . . . . . . . . . . . . Seismic 92 | 9 83 . . . . . . . . . . . . . . . . . Decoding 2232 | . . . . . . . . . . . . . . . 970 237 850 175 T.N.C. 13 | . . . . . . 13 . . . . . . . . . . . . Cloaking 528 | . . . . . . . . . . . . . . . . . 357 171 ECM 4899 | . . . . . . 1730 124 40 256 236 173 42 . 48 1000 237 838 175 Robot Analysis Total 5 | . . . . . . 1 . . . . . 4 . . . . . . Derelict Logs Recovered 9 | . . . . 2 . . . . . 2 1 . 2 . 2 . . . Drone Launches 1 | . . 1 . . . . . . . . . . . . . . . . Drone Recoveries . | . . . . . . . . . . . . . . . . . . . Decoded 0b10 Intel 17 | . . . . . . . . . . . . . . . . . 13 4 Traps 12 | . . . . . . . . . . . . . . . . . 11 1 Emergency Access 3 | . . . . . . . . . . . . . . . . . . 3 Garrisons 2 | . . . . . . . . . . . . . . . . . 2 . Exploration | -11 -10 -10 -10 -9 -8 -7 -6 -6 -5 -5 -5 -5 -4 -4 -4 -4 -3 -3 ------------- Run | Yrd Mat Min Exi Min Mat Fac Fac DSF Fac Upp Upp Zhi Pro Fac Upp Upp Res Arm Turns Passed 8090 | 250 324 132 311 130 1110 1751 124 40 256 236 173 170 615 158 1000 237 850 223 Spaces Moved 11634 | 107 172 296 833 247 967 1926 221 129 288 386 544 349 1256 307 1083 561 1608 354 Core 97 | 12 48 . . . . . . . . . . . 17 . . . . 20 Treads . | . . . . . . . . . . . . . . . . . . . Legs . | . . . . . . . . . . . . . . . . . . . Wheels 139 | 95 44 . . . . . . . . . . . . . . . . . Hover . | . . . . . . . . . . . . . . . . . . . Flight 11398 | . 80 296 833 247 967 1926 221 129 288 386 544 349 1239 307 1083 561 1608 334 Fastest Speed 20 | 50 37 37 37 37 29 23 20 20 20 20 20 20 20 27 27 34 22 22 Average Speed 29 | 81 54 37 37 37 30 26 20 20 20 20 20 20 32 34 30 34 24 26 Slowest Speed 360 | 150 100 37 37 37 31 360 20 20 20 96 20 99 150 105 32 34 34 200 Overloaded Moves . | . . . . . . . . . . . . . . . . . . . Propulsion Burnouts . | . . . . . . . . . . . . . . . . . . . Robots Hopped 64 | . . 2 . 2 7 13 2 . 1 . . . 13 . 2 . 18 4 Potential Cave-ins 3 | . . . . . 3 . . . . . . . . . . . . . Cave-ins Triggered 1 | . . . . . 1 . . . . . . . . . . . . . Teleports 1 | . . . . . . . . . . . . 1 . . . . . . Exploration Rate (%) 48 | 4 24 57 94 53 53 49 7 93 7 59 67 62 92 8 76 54 38 33 Regions Visited 18 Branch Regions 10 Pre-discovered Areas 9 | . . . 1 . . 2 . . . 1 1 3 1 . . . . . Known Exits Taken 13 | . 1 1 . . 1 . 1 . 1 1 1 1 1 1 1 1 1 . Unknown Exits Taken 4 | 1 . . 1 1 . 1 . . . . . . . . . . . . Scrap Searched 12 | . . . . 1 . . . . . 2 3 . 1 . 4 1 . . Spaces Dug 20 | . . . . . 7 . . . . . . . 7 . . . 3 3 Terrain Destroyed 137 | 2 4 . . . 7 . . . 1 48 . . 39 . 27 . 6 3 Melee 1 | . . . . . . . . . . . . . . . . . . 1 Projectile 18 | . . . . . 7 . . . 1 . . . 2 . . . 6 2 AOE 118 | 2 4 . . . . . . . . 48 . . 37 . 27 . . . Terrain Rammed . | . . . . . . . . . . . . . . . . . . . Walls Destroyed . | . . . . . . . . . . . . . . . . . . . Machines Disabled . | . . . . . . . . . . . . . . . . . . . Actions | -11 -10 -10 -10 -9 -8 -7 -6 -6 -5 -5 -5 -5 -4 -4 -4 -4 -3 -3 --------- Run | Yrd Mat Min Exi Min Mat Fac Fac DSF Fac Upp Upp Zhi Pro Fac Upp Upp Res Arm Total 15744 | 223 290 313 836 282 1723 3062 294 142 468 531 595 446 1437 352 1680 601 2013 456 Wait 3427 | 59 1 1 . 38 669 1045 63 11 157 127 29 79 132 30 524 32 367 63 Move 11495 | 106 171 291 832 242 953 1899 216 128 285 385 543 348 1233 306 1078 560 1573 346 Hop 57 | . . 2 . 2 6 13 2 . 1 . . . 9 . 2 . 16 4 Pick Up 37 | 4 2 2 2 . 7 7 2 1 3 1 3 1 . . 1 . 1 . Fast Attach 96 | 6 8 2 . . 8 15 2 . . . 2 9 8 1 10 3 20 2 Attach 37 | 1 1 1 . . 8 3 2 . 3 2 2 . 3 3 5 . 1 2 Detach 18 | . . 2 . . 3 . . . . 2 . . 3 3 4 . 1 . Swap 36 | 1 1 1 . . 10 5 1 1 2 5 4 1 1 . 1 . 2 . Drop 98 | 2 2 6 2 . 15 19 4 1 2 2 6 8 10 2 5 3 8 1 Fire 352 | 44 104 5 . . 44 56 2 . 15 7 6 . 16 7 31 . 9 6 Melee 23 | . . . . . . . . . . . . . . . 8 3 9 3 Ram 4 | . . . . . . . . . . . . . . . . . . 4 Kick . | . . . . . . . . . . . . . . . . . . . Crush . | . . . . . . . . . . . . . . . . . . . Escape Stasis 20 | . . . . . . . . . . . . . . . . . 6 14 Rewire 39 | . . . . . . . . . . . . . 22 . 11 . . 6 Trap . | . . . . . . . . . . . . . . . . . . . Miscellaneous 5 | . . . . . . . . . . . . . . . . . . 5 Route ------- -11/Scrapyard -10/Materials -10/Mines (discovered 2 exits: *Mat / *Exi) -10/Exiles (discovered 2 exits: *Min x2) -9/Mines -8/Materials -7/Factory (discovered 2 exits: *Fac x2) -6/Factory -6/DSF -5/Factory -5/Upper Caves -5/Upper Caves (discovered 2 exits: *Fac / *Zhi) -5/Zhirov -4/Proximity Caves -4/Factory (discovered 2 exits: *Res / *Upp) -4/Upper Caves -4/Upper Caves -3/Research (discovered 2 exits: *Res / *Arm) -3/Armory History --------- Turn | Location | Event 23 | -11/Scrapyard | Discovered new exit (range 15) 251 | -11/Scrapyard | Entered Materials 301 | -10/Materials | Build established: Mutant 320 | -10/Materials | Core integrity fell below 50% 379 | -10/Materials | Lost 6 parts (1p2n2u1w) 486 | -10/Materials | Core integrity fell below 20% 532 | -10/Materials | Discovered new exit (range 10) 574 | -10/Materials | Identified exit to Mines 575 | -10/Materials | Entered Mines 619 | -10/Mines | Discovered new exit (range 9) 623 | -10/Mines | Found a Scrap Suit stashed away for nefarious purposes 631 | -10/Mines | Found Scrap Suit 638 | -10/Mines | Identified exit to Materials 653 | -10/Mines | Deemed a non-threat by the Exiles lab entrance 653 | -10/Mines | Discovered new exit (range 5) 654 | -10/Mines | Identified exit to Exiles 671 | -10/Mines | Found the Drone Emporium 673 | -10/Mines | Found Prototype Device 673 | -10/Mines | Identified Bomb Drone Bay 707 | -10/Mines | Entered Exiles 716 | -10/Exiles | Met 8R-AWN 723 | -10/Exiles | Met EX-HEX 743 | -10/Exiles | Met EX-DEC 762 | -10/Exiles | Met EX-BIN 769 | -10/Exiles | Aligned with FarCom system 769 | -10/Exiles | Given EX-Vault access code 809 | -10/Exiles | Learned location of Zion (-6) 824 | -10/Exiles | Discovered new exit (range 12) 851 | -10/Exiles | Visited The Gauntlet 923 | -10/Exiles | Opened EX-Vault 926 | -10/Exiles | Found Field Lobotomy Kit 929 | -10/Exiles | Found PSU Rigger 937 | -10/Exiles | Warned to stay clear of 0b10 Research branches 965 | -10/Exiles | Discovered new exit (range 14) 987 | -10/Exiles | Build established: Scrapper 1018 | -10/Exiles | Stole two prototypes: PSU Rigger, Field Lobotomy Kit 1018 | -10/Exiles | Entered Mines 1020 | -9/Mines | Met a Derelict shopkeep closing up shop 1046 | -9/Mines | Learned 4 Materials zone layouts 1104 | -9/Mines | Discovered new exit (range 6) 1112 | -9/Mines | Assembled infested the area 1117 | -9/Mines | Assisted by a Guerilla fighting off Assembled 1148 | -9/Mines | Entered Materials 1148 | -8/Materials | Evolved 4 slots: Propulsion x2, Utility x2 1149 | -8/Materials | Identified exit to Factory 1456 | -8/Materials | Build established: Scavenger-Sprinter 2022 | -8/Materials | Build established: Sprinter 2249 | -8/Materials | Crushed by falling debris 2258 | -8/Materials | Entered Factory 2258 | -7/Factory | Evolved 2 slots: Power x1, Propulsion x1 2260 | -7/Factory | FarCom data flow suspended 2280 | -7/Factory | Lost 3 parts (2u1w) 2297 | -7/Factory | Central database locked down 2521 | -7/Factory | Discovered new exit (range 5) 2673 | -7/Factory | Fabricated B-48 Gladiator (x3) 3817 | -7/Factory | Repaired Plasma Cutter? 3966 | -7/Factory | Discovered new exit (range 10) 4009 | -7/Factory | Entered another Factory area 4009 | -6/Factory | Evolved 2 slots: Power x1, Propulsion x1 4070 | -6/Factory | Spotted B-75 Beast 4104 | -6/Factory | Identified exit to DSF 4133 | -6/Factory | Entered DSF 4145 | -6/DSF | Additional patrols routed to DSF 4163 | -6/DSF | Discovered new exit (range 16) 4173 | -6/DSF | Entered Factory 4173 | -5/Factory | Evolved 2 slots: Utility x2 4181 | -5/Factory | Discovered new exit (range 12) 4395 | -5/Factory | Identified exit to Upper Caves 4429 | -5/Factory | Entered Upper Caves 4429 | -5/Upper Caves | Accompanied by 4 allies 4477 | -5/Upper Caves | Learned Factory stockpile data 4549 | -5/Upper Caves | Learned location of Armory (-3) 4570 | -5/Upper Caves | Discovered new exit (range 10) 4572 | -5/Upper Caves | Identified exit to Upper Caves 4665 | -5/Upper Caves | Entered another Upper Caves area 4665 | -5/Upper Caves | Accompanied by 4 allies 4714 | -5/Upper Caves | Discovered new exit (range 5) 4715 | -5/Upper Caves | Identified exit to Factory 4791 | -5/Upper Caves | Discovered new exit (range 11) 4837 | -5/Upper Caves | Identified exit to Zhirov 4838 | -5/Upper Caves | Attracted the attention of an 0b10 outpost 4838 | -5/Upper Caves | Entered Zhirov 4838 | -5/Zhirov | Discovered new exit (range 3) 4839 | -5/Zhirov | Identified exit to Proximity Caves 4848 | -5/Zhirov | Learned location of Quarantine (-3) 4848 | -5/Zhirov | Learned location of Testing (-2) 4902 | -5/Zhirov | Found Alien Artifact 4902 | -5/Zhirov | Identified Transdimensional Reconstructor 4902 | -5/Zhirov | Warped through subspace 4910 | -5/Zhirov | Found Alien Artifact 4910 | -5/Zhirov | Identified Integrated Reactor 4910 | -5/Zhirov | Installed Integrated Reactor, increased core energy generation (+10) 5008 | -5/Zhirov | Entered Proximity Caves 5018 | -4/Proximity Caves | Spotted B-86 Titan 5041 | -4/Proximity Caves | Assimilated B-86 Titan with FLK Orb 5069 | -4/Proximity Caves | Lost 5 parts (4n1w) 5542 | -4/Proximity Caves | Discovered exit to Factory (range 5) 5623 | -4/Proximity Caves | Entered Factory 5623 | -4/Factory | Evolved 2 slots: Utility x2 5712 | -4/Factory | Discovered new exit (range 10) 5763 | -4/Factory | Discovered new exit (range 6) 5769 | -4/Factory | Identified exit to Upper Caves 5781 | -4/Factory | Entered Upper Caves 5887 | -4/Upper Caves | Entered a destroyed Warlord outpost 5893 | -4/Upper Caves | Learned Research security intel 5918 | -4/Upper Caves | Encountered a Warlord checkpoint 6217 | -4/Upper Caves | Attracted the attention of an 0b10 checkpoint 6230 | -4/Upper Caves | Build established: Derelict-Sprinter 6513 | -4/Upper Caves | Lost 3 parts (1p1n1w) 6660 | -4/Upper Caves | Learned Research emergency access door positions 6764 | -4/Upper Caves | Build established: Sprinter 6776 | -4/Upper Caves | Discovered new exit (range 5) 6777 | -4/Upper Caves | Identified exit to Upper Caves 6781 | -4/Upper Caves | Entered another Upper Caves area 6782 | -4/Upper Caves | Field Lobotomy Kit stolen by Master Thief 6783 | -4/Upper Caves | Encountered a Master Thief 6783 | -4/Upper Caves | Encountered a Master Thief 6784 | -4/Upper Caves | Encountered a Master Thief 6784 | -4/Upper Caves | Cesium-ion Thruster stolen by Master Thief 6787 | -4/Upper Caves | Exp. Core Shielding stolen by Master Thief 6851 | -4/Upper Caves | Discovered new exit (range 11) 6853 | -4/Upper Caves | Identified exit to Research 7018 | -4/Upper Caves | Entered Research 7018 | -3/Research | Evolved 2 slots: Utility x2 7019 | -3/Research | Identified exit to Armory 7211 | -3/Research | Discovered new exit (range 4) 7211 | -3/Research | Identified exit to Research 7247 | -3/Research | Found Prototype Launcher 7247 | -3/Research | Identified Mni. Smartbomb Launcher 7269 | -3/Research | Build established: Ninja 7428 | -3/Research | Repaired Broken Mic. Antimatter Reactor 7484 | -3/Research | Found Prototype Processor 7484 | -3/Research | Identified Exp. Target Analyzer 7609 | -3/Research | Found Prototype Hackware 7609 | -3/Research | Identified Exp. Hacking Suite 7782 | -3/Research | Build established: Infiltrator-Ninja 7868 | -3/Research | Entered Armory 7909 | -3/Armory | Spotted B-86 Titan 8017 | -3/Armory | Lost 6 parts (1p1n3u1w) 8041 | -3/Armory | Fabricated A-27 Freighter? 8043 | -3/Armory | Released all parts (8) 8054 | -3/Armory | Core integrity fell below 50% 8081 | -3/Armory | Core integrity fell below 20% 8091 | -3/Armory | Destroyed by H-77 Assassin with Coil Gun Last Messages --------------- Reinforced Shell breached. Slug penetrates Wall. Penetrated by Slug. P-80 Master resets P-80 Master, system corruption cleaned. Slug penetrates Wall. Destroyed Sml. Battery. Slug penetrates Y-72 Warden. Slug penetrates Wall. Penetrated by Slug. Slammed into P-80 Master. Penetrated by Slug. Slug penetrates Reinforced Shell. Slammed into Y-72 Warden. Slug penetrates Wall. Penetrated by Slug. Wall collapses. Slug penetrates Wall. Slammed into Y-72 Warden. Slug penetrates Wall. Map ----- +----------------------------------------------------+ | ?????????????? == """ + ???????? | | ?????????????? =! "" # ???????? | | ?????????????? =! # ########+### ???????? | | ?????????????#######+#?# #??????????# ???????? | | ???????????????????# #?# #??????????# """??????? | | ??????????????###??# #?# #??????????# ""???????? | | ??????????????# ?# #?# #??????????# ??????? | | ??????????????# /=?# #?# ############ ???????? | | ??????????????# [[ # ### ?????????? | | ??????????????# =] # ^ ?????????? | | ??????????????# [] " *^ ?????????? | | ??????????????# ]/ # %= """" ?????????? | | ??????????????# ][ # =#"T##### ""F??????????????? | | ??????????????# ?# !#""#???? "" ??????????????? | | ??????????????# ?#!*####????? ??????????????? | | ??????????????###?##] ##???????? ??????????????? | | ??????????????????# #?????????###?????????????? | | ??????????????????# #?????????????????????????? | | ??????????????????# #?????????????????????????? | | ??????????????????# #?????????????????????????? | | ??????????????????## ##?????????????????????????? | | ???????????????????# #??????????????????????????? | | ???????????????????# ####+#?????????????????????? | | ???????????????????# h #?????????????????????? | | ???????????????????# h Y #?????????????????????? | | ???????????????????####"#@####???????????????????? | | ????????????????????# p p% #???????????????????? | | ????????????????????# #???????????????????? | | ????????????????????#""" """"#???????????????????? | | ??????????????????????!!!!???????????????????????? | | ?????????????????????!!!!!???????????????????????? | | ????????????????????#######??????????????????????? | | ?????????????????????????????????????????????????? | | ?????????????????????????????????????????????????? | | ?????????????????????????????????????????????????? | | ?????????????????????????????????????????????????? | | ?????????????????????????????????????????????????? | | ?????????????????????????????????????????????????? | | ?????????????????????????????????????????????????? | | ?????????????????????????????????????????????????? | | ?????????????????????????????????????????????????? | | ?????????????????????????????????????????????????? | | ?????????????????????????????????????????????????? | | ?????????????????????????????????????????????????? | | ?????????????????????????????????????????????????? | | ?????????????????????????????????????????????????? | | ?????????????????????????????????????????????????? | | ?????????????????????????????????????????????????? | | ?????????????????????????????????????????????????? | | ?????????????????????????????????????????????????? | +----------------------------------------------------+ Best States ------------- Heat Dissipation 76 Energy Generation 53 Energy Capacity 385 Matter Stores 300 Matter Capacity 300 Sight Range 20 Robot Scan Range 16 Terrain Scan Range 16 Terrain Scan Density 10 ECM Strength 2 Cloak Strength 2 Armor Coverage 225 Core Shielding 40 Propulsion Shielding 66 Evasion (%) 75 Targeting Accuracy 6 Melee Accuracy 8 Target Analysis 10 Armor Integrity Analysis 40 Offensive Hacking 16 Item Schematics ----------------- Assault Drone Bay | -5/Zhirov | Free Exp. Heat Sink | -5/Zhirov | Free Exp. Optical Array | -5/Zhirov | Free Imp. Arc Thrower | -5/Zhirov | Free Robot Schematics ------------------ None Fabricated ------------ B-48 Gladiator | x3 | -7/Factory | Preloaded A-27 Freighter | x1 | -3/Armory | Preloaded Repaired ---------- Plasma Cutter | 20% | -7/Factory Mic. Antimatter Reactor | 99% | -3/Research | Broken Studied --------- Flight Unit | -7/Factory | Hacked Missile Launcher | -7/Factory | Hacked Autogun | -7/Factory | Hacked Lgt. Nuclear Core | -7/Factory | Hacked VTOL Module | -6/Factory | Hacked Cesium-ion Thruster | -6/Factory | Hacked Imp. EM Pulse Cannon | -6/Factory | Hacked Plasma Cutter | -6/Factory | Hacked Alien Tech Used ----------------- Transdimensional Reconstructor Integrated Reactor Achievements -------------- Consequences Infodabbler Live, Flee, And Rebuild Morally Flexible Sixth Sense Challenges ------------ None Game ------ Seed ChromaticDeepChargecaster Manual? 0 Play Time 03:59:50 Cumulative 89.0 hours Start 2025.12.03 @ 14:15:34 End 2025.12.03 @ 20:29:54 Sessions 1 Manual Loads 0 Difficulty Rogue Special Mode None Game No. 63 Rogue 63 Adventurer 0 Explorer 0 Win Type - Total 0 Types 0/0/0/0/0/0/0/0/0/0 Lore% 47 Gallery% 46 Achievement% 33 Wizard Run 0 Options --------- Layout 1 ASCII 0 Keyboard 0 Movement Mouse Keybinds 0 Fullscreen 1 Font 32/SmallcapsGlow Map View 50x40 Zoom Use 0% Tactical HUD 0 Map Filters NONE Filters NONE Steam 1 RUN: a34c858c-e972-4886-9bbb-4ed2c1080da2